[Event "WYCC 2018 G16"]
[Site "Halkidiki"]
[Date "2018.10.28"]
[Round "9"]
[White "Staravoitava, Hanna"]
[Black "Shanya Mishra"]
[Result "0-1"]
[ECO "A06"]
[WhiteElo "1768"]
[BlackElo "1924"]
[Annotator "NA"]
[PlyCount "80"]
[EventDate "2018.10.20"]
[EventType "swiss"]
[EventCountry "GRE"]
[SourceTitle "playchess.com"]
[Source "ChessBase"]
[SourceQuality "1"]
[TimeControl "40/5400+30:1800+30"]

1. Nf3 {[%emt 0:00:00]} d5 {[%emt 0:00:01]} 2. g3 {[%emt 0:00:00]} Nf6 {[%emt 0:00:32]} 3. Bg2 {[%emt 0:00:00]} Bf5 {[%emt 0:01:17]} 4. b3 {[%emt 0:00:14]} h6 {[%emt 0:02:09]} 5. Bb2 {[%emt 0:00:10]} e6 {[%emt 0:00:23]} 6. O-O {[%emt 0:00:45]} Be7 {[%emt 0:00:32]} 7. c4 {[%emt 0:00:06]} c6 {[%emt 0:01:41]} 8. d3 {[%emt 0:08:20]} O-O {[%emt 0:03:45]} 9. Nbd2 {[%emt 0:00:03]} a5 {[%emt 0:02:46]} 10. a3 {[%emt 0:01:07]} Na6 {[%emt 0:03:09]} 11. Re1 {[%emt 0:04:05]} Nc7 {[%emt 0:03:15]} 12. e4 {[%emt 0:00:45]} Bh7 {[%emt 0:00:58]} 13. Qe2 {[%emt 0:03:30]} Re8 {[%emt 0:03:16]} 14. Ne5 {[%emt 0:07:00]} Nd7 {[%emt 0:05:16]} 15. Nxd7 {[%emt 0:06:08]} Qxd7 {[%emt 0:00:08]} 16. Qg4 {[%emt 0:00:05]} Bf8 {[%emt 0:03:36]} 17. cxd5 {[%emt 0:05:55]} cxd5 {[%emt 0:02:14]} 18. Nf3 {[%emt 0:07:23]} Qb5 {[%emt 0:11:08]} 19. Be5 {[%emt 0:13:00]} dxe4 {[%emt 0:11:24]} 20. a4 {[%emt 0:09:22]} Qxd3 {[%emt 0:10:53]} 21. Rad1 {[%emt 0:02:18]} f5 {[%emt 0:03:57]} 22. Qh3 {[%emt 0:01:23]} Qxb3 {[%emt 0:02:36]} 23. Nd4 {[%emt 0:00:33]} Qb6 {[%emt 0:01:22]} 24. Rb1 {[%emt 0:06:09]} Bb4 {[%emt 0:01:13]} 25. Rec1 {[%emt 0:05:28]} Nd5 {[%emt 0:03:48]} 26. Nb5 {[%emt 0:02:49]} Rec8 {[%emt 0:01:41]} 27. Bxe4 {[%emt 0:03:13]} Rxc1+ {[%emt 0:02:56]} 28. Rxc1 {[%emt 0:00:06]} fxe4 {[%emt 0:00:37]} 29. Qg4 {[%emt 0:00:04]} Bf8 {[%emt 0:02:09]} 30. Nd6 {[%emt 0:00:59]} Bf5 {[%emt 0:04:04]} 31. Nxf5 {[%emt 0:00:39]} exf5 {[%emt 0:00:04]} 32. Qxf5 {[%emt 0:00:25]} e3 {[%emt 0:00:16]} 33. Qe4 {[%emt 0:10:27]} exf2+ {[%emt 0:00:39]} 34. Kg2 {[%emt 0:00:11]} Ne3+ {[%emt 0:01:26]} 35. Kxf2 {[%emt 0:00:36]} Ng4+ {[%emt 0:00:06]} 36. Kg2 {[%emt 0:00:05]} Nxe5 {[%emt 0:01:20]} 37. Qxe5 {[%emt 0:00:06]} Rd8 {[%emt 0:00:55]} 38. Rf1 {[%emt 0:02:19]} Qc6+ {[%emt 0:00:39]} 39. Kh3 {[%emt 0:00:22]} Qd7+ {[%emt 0:00:13]} 40. Kg2 {[%emt 0:00:00]} Qd5+ {[%emt 0:00:00]} 0-1

[Event "WYCC 2018 G16"]
[Site "Halkidiki"]
[Date "2018.10.28"]
[Round "9"]
[White "Hovhannisyan, Mane"]
[Black "Nestorovic, Katarina"]
[Result "0-1"]
[ECO "E19"]
[WhiteElo "1730"]
[BlackElo "2015"]
[Annotator "NA"]
[PlyCount "66"]
[EventDate "2018.10.20"]
[EventType "swiss"]
[EventCountry "GRE"]
[SourceTitle "playchess.com"]
[Source "ChessBase"]
[SourceQuality "1"]
[TimeControl "40/5400+30:1800+30"]

1. Nf3 {[%emt 0:00:00]} Nf6 {[%emt 0:00:00]} 2. c4 {[%emt 0:00:00]} e6 {[%emt 0:00:47]} 3. g3 {[%emt 0:00:00]} a6 {[%emt 0:00:40]} 4. Bg2 {[%emt 0:00:20]} b5 {[%emt 0:00:41]} 5. b3 {[%emt 0:00:06]} Bb7 {[%emt 0:00:42]} 6. O-O {[%emt 0:00:48]} c5 {[%emt 0:00:14]} 7. Nc3 {[%emt 0:00:12]} Qb6 {[%emt 0:01:01]} 8. Re1 {[%emt 0:00:14]} Nc6 {[%emt 0:02:07]} 9. e4 {[%emt 0:00:37]} d6 {[%emt 0:04:30]} 10. Nd5 {[%emt 0:10:52]} exd5 {[%emt 0:18:12]} 11. exd5+ {[%emt 0:00:04]} Ne7 {[%emt 0:00:15]} 12. d4 {[%emt 0:00:16]} cxd4 {[%emt 0:06:47]} 13. Nxd4 {[%emt 0:15:34]} g6 {[%emt 0:22:24]} 14. Be3 {[%emt 0:02:23]} Qc7 {[%emt 0:06:41]} 15. Rc1 {[%emt 0:03:48]} bxc4 {[%emt 0:02:11]} 16. bxc4 {[%emt 0:00:35]} Bg7 {[%emt 0:04:29]} 17. Bf4 {[%emt 0:18:20]} Nd7 {[%emt 0:03:54]} 18. Ne6 {[%emt 0:11:03]} fxe6 {[%emt 0:04:20]} 19. Rxe6 {[%emt 0:01:27]} Be5 {[%emt 0:05:22]} 20. Bg5 {[%emt 0:06:15]} O-O {[%emt 0:01:10]} 21. Bxe7 {[%emt 0:01:31]} Rf7 {[%emt 0:00:51]} 22. f4 {[%emt 0:00:55]} Nc5 {[%emt 0:05:15]} 23. fxe5 {[%emt 0:02:38]} Nxe6 {[%emt 0:03:03]} 24. Bxd6 {[%emt 0:00:38]} Qb6+ {[%emt 0:03:10]} 25. c5 {[%emt 0:00:07]} Qb2 {[%emt 0:00:19]} 26. c6 {[%emt 0:14:10]} Rf2 {[%emt 0:00:36]} 27. Be4 {[%emt 0:00:40]} Ng5 {[%emt 0:02:40]} 28. Rc2 {[%emt 0:04:58]} Rxc2 {[%emt 0:00:18]} 29. Qxc2 {[%emt 0:01:24]} Qd4+ {[%emt 0:00:09]} 30. Kg2 {[%emt 0:00:50]} Bc8 {[%emt 0:00:54]} 31. Qd3 {[%emt 0:03:15]} Bh3+ {[%emt 0:00:25]} 32. Kh1 {[%emt 0:00:01]} Qf2 {[%emt 0:01:08]} 33. Bb4 Nxe4 {[%emt 0:00:09]} 0-1

[Event "WYCC 2018 G16"]
[Site "Halkidiki"]
[Date "2018.10.28"]
[Round "9"]
[White "Mairambekova, Aiperi"]
[Black "Pecorini, Angie"]
[Result "1-0"]
[ECO "B56"]
[WhiteElo "1398"]
[BlackElo "1847"]
[Annotator "NA"]
[PlyCount "89"]
[EventDate "2018.10.20"]
[EventType "swiss"]
[EventCountry "GRE"]
[SourceTitle "playchess.com"]
[Source "ChessBase"]
[SourceQuality "1"]
[TimeControl "40/5400+30:1800+30"]

1. e4 {[%emt 0:00:00]} c5 {[%emt 0:00:00]} 2. Nf3 {[%emt 0:00:00]} d6 {[%emt 0:00:00]} 3. d4 {[%emt 0:00:00]} cxd4 {[%emt 0:00:00]} 4. Nxd4 {[%emt 0:00:02]} Nf6 {[%emt 0:00:00]} 5. Nc3 {[%emt 0:00:10]} Nc6 {[%emt 0:00:00]} 6. Be3 {[%emt 0:00:32]} Ng4 {[%emt 0:00:03]} 7. Bg5 {[%emt 0:00:48]} h6 {[%emt 0:00:07]} 8. Bh4 {[%emt 0:00:16]} g5 {[%emt 0:05:35]} 9. Bg3 {[%emt 0:00:28]} Bg7 {[%emt 0:01:39]} 10. Nxc6 {[%emt 0:08:25]} bxc6 {[%emt 0:00:06]} 11. Qd2 {[%emt 0:00:11]} Qa5 {[%emt 0:05:48]} 12. Nd1 {[%emt 0:09:11]} Qxd2+ {[%emt 0:03:44]} 13. Kxd2 {[%emt 0:00:09]} f5 {[%emt 0:07:01]} 14. exf5 {[%emt 0:03:17]} Bxf5 {[%emt 0:01:21]} 15. f3 {[%emt 0:00:23]} Nf6 {[%emt 0:06:11]} 16. Ne3 {[%emt 0:03:28]} Bg6 {[%emt 0:01:42]} 17. c3 {[%emt 0:01:06]} Rb8 {[%emt 0:03:05]} 18. b3 {[%emt 0:04:42]} Nh5 {[%emt 0:04:14]} 19. Re1 {[%emt 0:09:05]} Nxg3 {[%emt 0:06:58]} 20. hxg3 Be5 21. g4 {[%emt 0:11:31]} Bg3 {[%emt 0:10:34]} 22. Rd1 {[%emt 0:01:00]} h5 {[%emt 0:10:02]} 23. gxh5 {[%emt 0:02:30]} Rxh5 {[%emt 0:01:59]} 24. Rxh5 {[%emt 0:02:17]} Bxh5 {[%emt 0:00:08]} 25. Nf5 {[%emt 0:00:32]} Bf4+ {[%emt 0:00:08]} 26. Kc2 {[%emt 0:01:07]} Kf7 {[%emt 0:10:04]} 27. Bd3 {[%emt 0:06:04]} e6 {[%emt 0:09:27]} 28. Nd4 {[%emt 0:01:29]} c5 {[%emt 0:05:06]} 29. Nc6 {[%emt 0:01:50]} Rb6 {[%emt 0:01:22]} 30. Nxa7 {[%emt 0:02:43]} Bg6 {[%emt 0:01:58]} 31. Bxg6+ {[%emt 0:00:20]} Kxg6 {[%emt 0:00:05]} 32. a4 d5 {[%emt 0:04:13]} 33. Nb5 {[%emt 0:03:21]} g4 {[%emt 0:01:33]} 34. Rh1 {[%emt 0:06:27]} Be5 {[%emt 0:01:34]} 35. Rh4 {[%emt 0:03:36]} gxf3 {[%emt 0:00:26]} 36. gxf3 {[%emt 0:00:04]} Kg5 {[%emt 0:00:14]} 37. Rg4+ {[%emt 0:00:10]} Kf5 {[%emt 0:00:08]} 38. Kd3 {[%emt 0:01:15]} Rb8 {[%emt 0:00:11]} 39. Ke2 {[%emt 0:00:41]} Rh8 {[%emt 0:01:44]} 40. a5 {[%emt 0:00:00]} Rb8 {[%emt 0:00:00]} 41. a6 {[%emt 0:10:31]} d4 {[%emt 0:03:04]} 42. a7 {[%emt 0:02:36]} Ra8 {[%emt 0:01:07]} 43. cxd4 {[%emt 0:02:50]} cxd4 {[%emt 0:03:16]} 44. Kd3 {[%emt 0:08:03]} Bh8 {[%emt 0:04:14]} 45. Rg1 {[%emt 0:02:20] Ke4+ Kxe4} 1-0

[Event "WYCC 2018 G16"]
[Site "Halkidiki"]
[Date "2018.10.28"]
[Round "9"]
[White "Michielsen, Lies"]
[Black "Ros Alonso, Joana"]
[Result "1/2-1/2"]
[ECO "C15"]
[WhiteElo "1398"]
[BlackElo "1952"]
[Annotator "NA"]
[PlyCount "122"]
[EventDate "2018.10.20"]
[EventType "swiss"]
[EventCountry "GRE"]
[SourceTitle "playchess.com"]
[Source "ChessBase"]
[SourceQuality "1"]
[TimeControl "40/5400+30:1800+30"]

1. e4 {[%emt 0:00:00]} e6 {[%emt 0:00:00]} 2. d4 {[%emt 0:00:00]} d5 {[%emt 0:00:00]} 3. Nc3 {[%emt 0:00:13]} Bb4 {[%emt 0:00:00]} 4. exd5 {[%emt 0:00:32]} exd5 {[%emt 0:00:09]} 5. Bd3 {[%emt 0:00:10]} Nf6 {[%emt 0:01:26]} 6. Nge2 {[%emt 0:00:16]} Nc6 {[%emt 0:01:38]} 7. O-O {[%emt 0:01:01]} Bg4 {[%emt 0:02:22]} 8. f3 {[%emt 0:00:37]} Bh5 {[%emt 0:04:09]} 9. Nf4 {[%emt 0:10:28]} Bg6 {[%emt 0:04:48]} 10. Nxg6 {[%emt 0:01:43]} hxg6 {[%emt 0:00:06]} 11. Ne2 {[%emt 0:01:41]} Bd6 {[%emt 0:00:44]} 12. Bf4 {[%emt 0:14:24]} Nxd4 {[%emt 0:08:55]} 13. Bxd6 {[%emt 0:00:53]} Qxd6 {[%emt 0:00:14]} 14. h3 {[%emt 0:10:03]} Nf5 {[%emt 0:02:05]} 15. Re1 {[%emt 0:05:35]} O-O-O {[%emt 0:03:22]} 16. Bxf5+ {[%emt 0:05:50]} gxf5 {[%emt 0:00:09]} 17. Qd3 {[%emt 0:01:57]} g6 {[%emt 0:03:27]} 18. Rad1 {[%emt 0:06:04]} Kb8 {[%emt 0:03:05]} 19. Rd2 {[%emt 0:05:01]} Qb6+ {[%emt 0:03:40]} 20. Qd4 {[%emt 0:00:54]} c5 {[%emt 0:05:29]} 21. Qf4+ {[%emt 0:03:21]} Ka8 {[%emt 0:01:19]} 22. c3 {[%emt 0:06:20]} Nh5 {[%emt 0:09:22]} 23. Qa4 {[%emt 0:05:42]} c4+ {[%emt 0:02:40]} 24. Kf1 {[%emt 0:03:32]} Rhe8 {[%emt 0:04:51]} 25. Qc2 {[%emt 0:02:14]} Qe3 26. Rdd1 d4 {[%emt 0:03:31]} 27. cxd4 {[%emt 0:05:07]} Rxd4 {[%emt 0:00:48]} 28. a3 {[%emt 0:04:33]} Red8 {[%emt 0:06:30]} 29. Rxd4 {[%emt 0:01:42]} Rxd4 {[%emt 0:00:12]} 30. Rd1 {[%emt 0:01:00]} Rxd1+ {[%emt 0:09:15]} 31. Qxd1 {[%emt 0:00:02]} Qe7 {[%emt 0:03:57]} 32. Qd4 {[%emt 0:00:45]} Qc7 {[%emt 0:01:52]} 33. Qh8+ {[%emt 0:01:14]} Qb8 {[%emt 0:00:03]} 34. Qd4 {[%emt 0:00:21]} Qc8 {[%emt 0:12:34]} 35. Qd5 {[%emt 0:01:43]} f6 {[%emt 0:01:44]} 36. Qf7 {[%emt 0:00:25]} f4 {[%emt 0:01:51]} 37. Qxg6 {[%emt 0:00:57]} Qh8 {[%emt 0:00:33]} 38. Qf7 {[%emt 0:01:05]} c3 {[%emt 0:01:10]} 39. Nxc3 {[%emt 0:01:06]} Ng3+ {[%emt 0:00:07]} 40. Kf2 {[%emt 0:00:00]} Qd8 {[%emt 0:00:00]} 41. Qd5 {[%emt 0:02:28]} Qb6+ {[%emt 0:00:39]} 42. Ke1 {[%emt 0:01:26]} Qg1+ {[%emt 0:02:03]} 43. Kd2 {[%emt 0:00:11]} Qxg2+ {[%emt 0:07:15]} 44. Kc1 {[%emt 0:01:24]} Qg1+ {[%emt 0:02:03]} 45. Qd1 {[%emt 0:02:53]} Qb6 {[%emt 0:02:02]} 46. Qd2 {[%emt 0:03:20]} Qc7 {[%emt 0:00:36]} 47. Kb1 {[%emt 0:02:03]} Nf5 {[%emt 0:03:05]} 48. Nb5 {[%emt 0:05:18]} Qb8 {[%emt 0:03:01]} 49. Qd7 {[%emt 0:01:15]} a6 {[%emt 0:00:23]} 50. Qxf5 {[%emt 0:01:52]} axb5 {[%emt 0:00:05]} 51. Qxb5 {[%emt 0:00:12]} Qd6 {[%emt 0:01:03]} 52. Qe8+ {[%emt 0:02:03]} Ka7 {[%emt 0:00:08]} 53. Qa4+ {[%emt 0:00:20]} Kb8 {[%emt 0:00:06]} 54. Qe8+ {[%emt 0:00:11]} Ka7 {[%emt 0:00:36]} 55. Qe1 {[%emt 0:00:19]} Qd3+ {[%emt 0:00:55]} 56. Ka2 {[%emt 0:00:32]} Qxf3 {[%emt 0:00:35]} 57. Qa5+ {[%emt 0:00:13]} Kb8 {[%emt 0:00:03]} 58. Qd8+ {[%emt 0:00:07]} Ka7 {[%emt 0:00:03]} 59. Qa5+ {[%emt 0:01:41]} Kb8 {[%emt 0:00:04]} 60. Qd8+ {[%emt 0:00:08]} Ka7 {[%emt 0:00:05]} 61. Qa5+ {[%emt 0:01:36]} Kb8 {[%emt 0:00:04]} 1/2-1/2

[Event "WYCC 2018 G16"]
[Site "Halkidiki"]
[Date "2018.10.29"]
[Round "10"]
[White "Maltsevskaya, Aleksandra"]
[Black "Muetsch, Annmarie"]
[Result "0-1"]
[ECO "A48"]
[WhiteElo "2290"]
[BlackElo "2206"]
[Annotator "NA"]
[PlyCount "72"]
[EventDate "2018.10.20"]
[EventType "swiss"]
[EventCountry "GRE"]
[SourceTitle "playchess.com"]
[Source "ChessBase"]
[SourceQuality "1"]
[TimeControl "40/5400+30:1800+30"]

1. d4 {[%emt 0:00:00]} Nf6 {[%emt 0:00:00]} 2. Nf3 {[%emt 0:00:00]} g6 {[%emt 0:00:00]} 3. Nbd2 {[%emt 0:03:42]} Bg7 {[%emt 0:01:16]} 4. e4 {[%emt 0:00:08]} d6 {[%emt 0:01:52]} 5. Bd3 {[%emt 0:00:16]} O-O {[%emt 0:02:15]} 6. O-O {[%emt 0:00:07]} Nc6 {[%emt 0:04:40]} 7. c3 {[%emt 0:01:02]} e5 {[%emt 0:01:54]} 8. Re1 {[%emt 0:10:21]} Nh5 {[%emt 0:09:35]} 9. Nb3 {[%emt 0:03:33]} h6 {[%emt 0:07:06] LiveBook: 20 Games} 10. Bf1 {[%emt 0:02:39]} Bg4 {[%emt 0:06:43]} 11. Be3 {[%emt 0:20:10]} Qf6 {[%emt 0:05:53]} 12. Be2 {[%emt 0:07:50]} Nf4 {[%emt 0:02:58]} 13. Bxf4 {[%emt 0:00:34]} Qxf4 {[%emt 0:00:47]} 14. d5 {[%emt 0:02:05]} Ne7 {[%emt 0:07:34]} 15. Nbd2 $11 {[%emt 0:01:12]} Bxf3 {[%emt 0:04:28]} 16. Bxf3 {[%emt 0:00:51]} f5 {[%emt 0:05:50]} 17. Qe2 {[%emt 0:01:38]} Qg5 {[%emt 0:03:17]} 18. b4 {[%emt 0:04:31]} Kh8 {[%emt 0:03:46]} 19. a4 {[%emt 0:04:38]} Ng8 {[%emt 0:01:40]} 20. a5 {[%emt 0:00:46]} Nf6 {[%emt 0:02:00]} 21. Ra2 {[%emt 0:02:30]} Rf7 {[%emt 0:02:13]} 22. Rc2 {[%emt 0:04:28]} h5 {[%emt 0:03:09]} 23. c4 {[%emt 0:02:28]} Bh6 {[%emt 0:02:22]} 24. Rf1 {[%emt 0:04:43]} Raf8 {[%emt 0:02:08]} 25. Ra2 {[%emt 0:03:15]} h4 {[%emt 0:00:39]} 26. h3 {[%emt 0:00:36]} Qf4 {[%emt 0:04:01]} 27. Kh1 {[%emt 0:03:26]} Nh7 {[%emt 0:03:36]} 28. Rg1 {[%emt 0:00:07]} fxe4 {[%emt 0:00:50]} 29. Nxe4 {[%emt 0:00:41]} Ng5 {[%emt 0:01:36]} 30. Nxg5 {[%emt 0:00:18]} Qxg5 {[%emt 0:01:31]} 31. Rf1 {[%emt 0:05:01]} Rf4 {[%emt 0:00:29]} 32. Rc2 {[%emt 0:01:37]} Qf5 {[%emt 0:01:45]} 33. Bg4 {[%emt 0:00:26]} Qf6 {[%emt 0:01:11]} 34. Bf3 {[%emt 0:00:17]} e4 {[%emt 0:02:14]} 35. Bxe4 {[%emt 0:00:45]} Re8 {[%emt 0:00:40]} 36. f3 {[%emt 0:00:10]} Rexe4 {[%emt 0:00:14]} 0-1

[Event "WYCC 2018 G16"]
[Site "Halkidiki"]
[Date "2018.10.29"]
[Round "10"]
[White "Solozhenkina, Elizaveta"]
[Black "Kucharska, Honorata"]
[Result "0-1"]
[ECO "C11"]
[WhiteElo "2276"]
[BlackElo "2073"]
[Annotator "NA"]
[PlyCount "76"]
[EventDate "2018.10.20"]
[EventType "swiss"]
[EventCountry "GRE"]
[SourceTitle "playchess.com"]
[Source "ChessBase"]
[SourceQuality "1"]
[TimeControl "40/5400+30:1800+30"]

1. e4 {[%emt 0:00:00]} e6 {[%emt 0:00:00]} 2. d4 {[%emt 0:00:00]} d5 {[%emt 0:00:00]} 3. Nc3 {[%emt 0:00:00]} Nf6 {[%emt 0:00:06]} 4. e5 {[%emt 0:00:00]} Nfd7 {[%emt 0:00:10]} 5. f4 {[%emt 0:00:00]} c5 {[%emt 0:00:20]} 6. Nf3 {[%emt 0:00:08]} Nc6 {[%emt 0:00:39]} 7. Be3 {[%emt 0:00:08]} cxd4 {[%emt 0:00:54]} 8. Nxd4 {[%emt 0:00:18]} Bc5 {[%emt 0:00:19]} 9. Qd2 {[%emt 0:01:48]} a6 {[%emt 0:00:35]} 10. O-O-O {[%emt 0:01:56]} O-O {[%emt 0:00:50]} 11. Kb1 {[%emt 0:23:26]} Bxd4 {[%emt 0:05:44]} 12. Bxd4 {[%emt 0:00:07]} b5 {[%emt 0:00:32]} 13. Qe3 {[%emt 0:07:01]} ({White should play} 13. Bf2 $14) 13... b4 {[%emt 0:07:19] LiveBook: 5 Games} 14. Ne2 {[%emt 0:02:22]} a5 {[%emt 0:05:54]} 15. Nc1 {[%emt 0:01:23]} Nxd4 {[%emt 0:05:33]} 16. Rxd4 {[%emt 0:03:59]} Qc7 {[%emt 0:01:36]} 17. g4 {[%emt 0:04:30]} Ba6 $17 {[%emt 0:02:40]} 18. Bg2 {[%emt 0:17:42]} Rfc8 {[%emt 0:03:50]} 19. Qf2 {[%emt 0:03:17]} Rab8 {[%emt 0:06:08]} 20. Re1 {[%emt 0:03:19]} a4 {[%emt 0:03:24]} 21. Rd2 {[%emt 0:07:21]} Nb6 {[%emt 0:04:25]} 22. b3 {[%emt 0:00:42]} Nd7 {[%emt 0:06:34]} 23. f5 {[%emt 0:02:56]} a3 {[%emt 0:01:24]} 24. Qd4 {[%emt 0:02:32]} Nb6 {[%emt 0:04:30]} 25. Re3 {[%emt 0:02:05]} Qc5 {[%emt 0:06:35]} 26. Qf4 {[%emt 0:02:31]} Rd8 {[%emt 0:08:55]} 27. Rh3 {[%emt 0:04:33]} Nd7 {[%emt 0:05:47]} 28. g5 {[%emt 0:06:42]} Nf8 {[%emt 0:04:34]} 29. g6 {[%emt 0:02:17]} fxg6 {[%emt 0:00:48]} 30. fxe6 {[%emt 0:01:07]} Nxe6 {[%emt 0:00:38]} 31. Qh4 {[%emt 0:00:12]} h6 {[%emt 0:00:34]} 32. Qg4 {[%emt 0:00:36]} Ng5 {[%emt 0:00:31]} 33. Rg3 {[%emt 0:00:07]} Bc8 {[%emt 0:01:52]} 34. Qd1 {[%emt 0:00:01]} d4 {[%emt 0:00:58]} 35. Ne2 {[%emt 0:01:35]} Bf5 {[%emt 0:02:39]} 36. Nxd4 {[%emt 0:00:31]} Qxe5 {[%emt 0:02:32]} 37. Bf1 {[%emt 0:00:42]} Ne4 {[%emt 0:00:38]} 38. Bc4+ {[%emt 0:00:03]} Kh8 {[%emt 0:00:10]} 0-1

[Event "WYCC 2018 G16"]
[Site "Halkidiki"]
[Date "2018.10.29"]
[Round "10"]
[White "Beydullayeva, Govhar"]
[Black "Rudzinska, Michalina"]
[Result "1/2-1/2"]
[ECO "A05"]
[WhiteElo "2202"]
[BlackElo "2073"]
[Annotator "NA"]
[PlyCount "104"]
[EventDate "2018.10.20"]
[EventType "swiss"]
[EventCountry "GRE"]
[SourceTitle "playchess.com"]
[Source "ChessBase"]
[SourceQuality "1"]
[TimeControl "40/5400+30:1800+30"]

1. Nf3 {[%emt 0:00:00]} Nf6 {[%emt 0:00:00]} 2. c4 {[%emt 0:00:00]} e6 {[%emt 0:00:00]} 3. g3 {[%emt 0:00:00]} d5 {[%emt 0:00:00]} 4. d4 {[%emt 0:00:51]} dxc4 {[%emt 0:01:41]} 5. Qa4+ {[%emt 0:01:15]} c6 {[%emt 0:00:29]} 6. Qxc4 {[%emt 0:00:07]} b5 {[%emt 0:00:25]} 7. Qc2 {[%emt 0:10:26]} Bb7 {[%emt 0:00:21]} 8. Bg2 {[%emt 0:02:32]} Nbd7 {[%emt 0:01:48]} 9. Nc3 {[%emt 0:00:26] LiveBook: 90 Games} a6 {[%emt 0:01:41]} 10. O-O {[%emt 0:00:54]} Be7 {[%emt 0:00:11]} 11. Rd1 {[%emt 0:01:07]} Qb6 {[%emt 0:06:24]} 12. e4 {[%emt 0:08:54]} O-O {[%emt 0:03:35]} 13. h3 {[%emt 0:14:04]} c5 {[%emt 0:03:18]} 14. d5 {[%emt 0:03:39]} c4 $11 {[%emt 0:14:12]} ({Black should play} 14... exd5 $15 15. Nxd5 Nxd5 16. exd5 Rad8) 15. Bf4 {[%emt 0:22:55]} exd5 {[%emt 0:14:10]} 16. e5 {[%emt 0:01:11]} Nh5 {[%emt 0:02:30]} 17. Nxd5 {[%emt 0:11:00]} Bxd5 {[%emt 0:00:08]} 18. Rxd5 {[%emt 0:00:01]} Nxf4 {[%emt 0:00:23]} 19. Rxd7 {[%emt 0:04:01]} Ng6 {[%emt 0:06:12]} 20. h4 {[%emt 0:08:51]} Rad8 {[%emt 0:04:14]} 21. Rdd1 {[%emt 0:07:31]} Rfe8 {[%emt 0:03:04]} 22. Bh3 {[%emt 0:00:39]} Nf8 {[%emt 0:03:20]} 23. b3 {[%emt 0:00:06]} Ne6 {[%emt 0:09:39]} 24. bxc4 {[%emt 0:00:28]} Rxd1+ {[%emt 0:00:59]} 25. Qxd1 {[%emt 0:00:26]} bxc4 {[%emt 0:05:13]} 26. Qd7 {[%emt 0:00:11]} Kf8 {[%emt 0:04:53]} 27. Rc1 {[%emt 0:00:55]} Rd8 {[%emt 0:02:52]} 28. Qa4 {[%emt 0:00:07]} Rd3 {[%emt 0:01:06]} 29. Bg2 {[%emt 0:00:59]} c3 {[%emt 0:00:33]} 30. Qc2 {[%emt 0:00:41]} Qb2 {[%emt 0:01:21]} 31. Ne1 {[%emt 0:00:35]} Nd4 {[%emt 0:06:19]} 32. Qxd3 {[%emt 0:00:25]} Qxc1 {[%emt 0:00:05]} 33. Kf1 {[%emt 0:00:34]} c2 {[%emt 0:03:12]} 34. Qc3 {[%emt 0:00:12]} g6 {[%emt 0:00:57]} 35. Be4 {[%emt 0:00:03]} Qd1 {[%emt 0:01:11]} 36. Bxc2 {[%emt 0:00:08]} Qe2+ {[%emt 0:00:18]} 37. Kg2 {[%emt 0:00:52]} Qxe5 {[%emt 0:00:37]} 38. Nf3 {[%emt 0:01:12]} Nxf3 {[%emt 0:00:18]} 39. Qxf3 {[%emt 0:00:01]} a5 {[%emt 0:00:51]} 40. Bb3 {[%emt 0:00:00]} Qf6 {[%emt 0:00:00]} 41. Qa8+ {[%emt 0:04:28]} Bd8 {[%emt 0:01:02]} 42. Qd5 {[%emt 0:00:44]} Bb6 {[%emt 0:00:58]} 43. f3 {[%emt 0:00:33]} Qb2+ {[%emt 0:00:56]} 44. Kh3 {[%emt 0:00:42]} Qf6 {[%emt 0:00:12]} 45. Qb7 {[%emt 0:04:03]} Bd8 {[%emt 0:03:20]} 46. Kg2 {[%emt 0:03:51]} Qb2+ {[%emt 0:00:31]} 47. Kh3 {[%emt 0:02:43]} Qf6 {[%emt 0:00:07]} 48. Qd7 {[%emt 0:02:49]} Qf5+ {[%emt 0:03:50]} 49. Qxf5 {[%emt 0:00:04]} gxf5 {[%emt 0:00:05]} 50. Bc2 {[%emt 0:02:56]} Kg7 {[%emt 0:00:09]} 51. Bxf5 {[%emt 0:00:04]} h6 {[%emt 0:00:17]} 52. a4 {[%emt 0:00:55]} f6 {[%emt 0:00:19]} 1/2-1/2

[Event "WYCC 2018 G16"]
[Site "Halkidiki"]
[Date "2018.10.29"]
[Round "10"]
[White "Getman, Tatyana"]
[Black "Duson, Robin"]
[Result "1-0"]
[ECO "A61"]
[WhiteElo "2195"]
[BlackElo "1999"]
[Annotator "NA"]
[PlyCount "79"]
[EventDate "2018.10.20"]
[EventType "swiss"]
[EventCountry "GRE"]
[SourceTitle "playchess.com"]
[Source "ChessBase"]
[SourceQuality "1"]
[TimeControl "40/5400+30:1800+30"]

1. d4 {[%emt 0:00:00]} Nf6 {[%emt 0:00:00]} 2. c4 {[%emt 0:00:00]} e6 {[%emt 0:00:00]} 3. Nf3 {[%emt 0:00:00]} c5 {[%emt 0:00:17]} 4. d5 {[%emt 0:00:00]} exd5 {[%emt 0:00:07]} 5. cxd5 {[%emt 0:00:00]} d6 {[%emt 0:00:06]} 6. Nc3 {[%emt 0:00:00]} g6 {[%emt 0:00:09]} 7. h3 {[%emt 0:00:09]} Bg7 {[%emt 0:00:18]} 8. e4 {[%emt 0:00:08]} O-O {[%emt 0:00:12]} 9. Bd3 {[%emt 0:00:08]} Bd7 {[%emt 0:00:31]} 10. Bf4 {[%emt 0:00:23]} Re8 {[%emt 0:00:26]} 11. O-O {[%emt 0:00:40]} b5 {[%emt 0:00:26]} 12. Bxd6 {[%emt 0:02:26]} b4 {[%emt 0:00:24]} 13. Ne2 {[%emt 0:00:13]} Nxe4 {[%emt 0:00:57]} 14. Bxe4 {[%emt 0:00:57]} Rxe4 {[%emt 0:00:09]} 15. Bxc5 {[%emt 0:00:30]} a5 {[%emt 0:00:58]} 16. Qd2 {[%emt 0:19:02]} Bb5 {[%emt 0:06:32]} 17. Be3 {[%emt 0:01:27]} Nd7 {[%emt 0:02:39]} 18. Rfd1 $11 {[%emt 0:04:48]} Ne5 {[%emt 0:05:12]} 19. Nxe5 {[%emt 0:02:11]} Bxe5 {[%emt 0:05:55]} 20. Rac1 {[%emt 0:03:19]} Qd6 {[%emt 0:16:58]} 21. Nd4 {[%emt 0:34:48]} Bd7 {[%emt 0:05:44]} 22. Nf3 {[%emt 0:01:43]} Bf4 {[%emt 0:09:57]} 23. Bxf4 {[%emt 0:02:49]} Rxf4 {[%emt 0:00:10]} 24. Qd3 {[%emt 0:05:30]} Qf6 {[%emt 0:02:38]} 25. b3 {[%emt 0:01:01]} Rd8 {[%emt 0:06:17]} 26. Rc4 {[%emt 0:01:37]} Be6 {[%emt 0:05:44]} 27. Rxf4 {[%emt 0:00:42]} Qxf4 {[%emt 0:00:07]} 28. d6 {[%emt 0:00:13]} a4 {[%emt 0:01:53]} 29. h4 {[%emt 0:06:29]} Bg4 {[%emt 0:05:07]} 30. bxa4 {[%emt 0:01:04]} Bxf3 {[%emt 0:00:41]} 31. Qxf3 {[%emt 0:00:08]} Qe5 {[%emt 0:00:11]} 32. Qd5 {[%emt 0:00:55]} Qc3 {[%emt 0:00:59]} 33. d7 {[%emt 0:00:50]} Qc7 {[%emt 0:01:57]} 34. a5 {[%emt 0:00:30]} Kf8 {[%emt 0:00:42]} 35. a6 {[%emt 0:01:04]} h5 {[%emt 0:03:05]} 36. Qd6+ {[%emt 0:00:38]} Qxd6 {[%emt 0:00:14]} 37. Rxd6 {[%emt 0:00:02]} Ke7 {[%emt 0:00:09]} 38. Rd1 {[%emt 0:00:05]} f5 {[%emt 0:00:37]} 39. a7 {[%emt 0:00:51]} f4 {[%emt 0:00:17]} 40. Kh2 {[%emt 0:00:00]} 1-0